bitfinex-derivatives/quotes_ETHF0:USTF0_20260201
["timestamp","ask_amount","ask_price","bid_price","bid_amount"]
[1769981633368,0.21725,2303.9,2303.4,1.55e-06]
[1769981633567,0.00511629,2304.0,2302.4,2.50120816]
[1769981633778,0.21727,2303.6,2302.5,13.04230816]
[1769981634175,0.2173,2303.4,2302.2,2.50120816]
[1769981634373,0.2173,2303.4,2302.3,2.50120816]
[1769981634571,0.2173,2303.4,2302.5,2.50120816]
[1769981635077,0.2173,2303.4,2302.6,8.20299764]
[1769981635771,0.03199615,2304.0,2302.9,2.48776823]
[1769981636177,0.03199615,2304.0,2303.1,2.48776823]
[1769981636576,0.00511629,2304.0,2303.2,13.02886823]
[1769981636775,0.00511629,2304.0,2303.2,2.48776823]
[1769981636976,0.01882396,2304.6,2303.5,10.69479382]
[1769981637275,0.01882396,2304.6,2303.5,2.49179618]
[1769981637476,0.01882396,2304.6,2303.6,10.5411]
[1769981637671,6.455,2304.7,2303.6,10.5411]
[1769981637672,0.21719,2304.5,2303.7,2.49179618]
[1769981638076,0.22208335,2304.5,2303.8,8.20299764]
[1769981638279,0.22208335,2304.5,2304.0,2.49179618]
[1769981638480,0.01882396,2305.3,2304.2,10.69479382]
[1769981638776,3.89495396,2305.2,2304.2,2.49179618]
[1769981638976,3.89495396,2305.2,2304.3,10.5411]
[1769981639174,3.89495396,2305.2,2304.3,18.74409764]
[1769981639375,3.89495396,2305.2,2304.4,8.20299764]
[1769981639580,3.89495396,2305.2,2304.4,10.69399469]
[1769981639581,3.88023926,2305.2,2304.4,10.69399469]
[1769981639777,3.88023926,2305.2,2304.5,10.5411]
[1769981640381,0.22123926,2305.2,2304.6,2.49099705]
[1769981640581,0.22123926,2305.2,2304.0,0.00360633]
[1769981640582,0.02042222,2305.5,2304.0,0.00360633]
[1769981640879,0.05193523,2305.3,2304.2,2.47524055]
[1769981641076,0.21717,2304.7,2304.1,9.96608]
[1769981641475,0.21711,2305.4,2304.2,2.47524055]
[1769981641673,0.21715,2305.0,2304.1,9.96608]
[1769981641874,0.21717,2304.8,2304.1,9.96608]
[1769981642078,0.21717,2304.7,2304.0,0.00360633]
[1769981642278,0.21717,2304.7,2304.0,9.96968633]
[1769981642575,0.21718,2304.6,2304.0,0.00360633]
[1769981642977,0.21712,2305.3,2304.2,2.48053714]
[1769981643177,0.21712,2305.3,2304.6,2.48053714]
[1769981643580,0.21715,2304.9,2304.3,2.48053714]
[1769981643979,0.04134205,2305.2,2304.4,9.5194428]
[1769981644184,0.21716,2304.8,2304.1,11.99997994]
[1769981644682,0.03708275,2304.8,2304.0,0.00360633]
[1769981644977,0.21721,2304.4,2304.0,0.00360633]
[1769981645378,0.25898416,2304.8,2304.3,5.97036184]
[1769981645577,0.25898416,2304.8,2304.0,0.00360633]
[1769981645779,0.21722,2304.2,2303.5,2.37406179]
[1769981645974,0.21722,2304.2,2303.6,9.5194428]
[1769981646175,0.25429275,2304.5,2303.6,14.36757464]
[1769981646482,0.25429275,2304.5,2303.6,7.96865023]
[1769981646683,0.25429275,2304.5,2303.6,7.53554887]
[1769981646883,0.21724,2304.0,2303.6,6.65189887]
[1769981647080,0.21724,2304.0,2303.6,5.72619887]
[1769981647276,0.25429275,2304.5,2303.7,4.01441184]
[1769981647479,0.21724,2304.0,2303.6,2.98532048]
[1769981647676,0.21724,2304.0,2303.2,2.37406179]
[1769981647877,0.00469141,2304.8,2303.9,2.38376426]
[1769981648081,3.41660301,2304.8,2303.9,2.38376426]
[1769981648282,0.2172,2304.4,2303.9,7.65801449]
[1769981648479,0.00469141,2304.8,2304.3,2.98532048]
[1769981648878,0.00469141,2304.8,2304.1,2.38376426]
[1769981649082,0.00469141,2304.8,2304.3,2.98532048]
[1769981649484,3.655,2305.0,2304.7,1.41296907]
[1769981649485,3.87215,2305.0,2304.7,1.41296907]
[1769981649680,3.87215,2305.0,2304.3,7.65801449]
[1769981649890,3.87215,2305.0,2304.5,0.89790907]
[1769981650288,3.87215,2305.0,2304.6,0.89790907]
[1769981650486,2.52120454,2305.3,2304.6,3.28167333]
[1769981650693,6.83997415,2305.4,2304.6,3.28167333]
[1769981650887,6.83997415,2305.4,2304.7,7.65801449]
[1769981650888,3.668,2305.4,2304.7,7.65801449]
[1769981651088,3.668,2305.4,2304.9,3.28167333]
[1769981651288,3.668,2305.4,2304.9,2.38376426]
[1769981651485,3.668,2305.4,2304.9,8.55592356]
[1769981651691,3.89038164,2305.4,2305.0,3.28167333]
[1769981651891,3.89038164,2305.4,2305.0,0.89790907]
[1769981652490,3.89038164,2305.4,2305.1,0.38527907]
[1769981652694,3.89038164,2305.4,2304.9,0.38527907]
[1769981653094,3.89038164,2305.4,2305.0,0.38527907]
[1769981653291,0.22238164,2305.4,2304.8,7.65801449]
[1769981654191,0.22238164,2305.4,2304.9,5.27425023]
[1769981654395,0.22238164,2305.4,2304.9,7.65801449]
[1769981654594,0.22238164,2305.4,2305.0,2.38376426]
[1769981654795,6.2231032,2305.6,2305.1,4.83696023]
[1769981654991,6.2231032,2305.6,2305.1,3.91500023]
[1769981655189,0.21711,2305.4,2305.1,2.99316023]
[1769981655393,0.21711,2305.3,2304.6,2.38376426]
[1769981655593,0.21714,2305.1,2304.6,2.38376426]
[1769981655794,0.22239157,2305.1,2304.7,4.36268219]
[1769981655990,0.21714,2305.0,2304.2,2.38376426]
[1769981656300,0.00525157,2305.1,2304.2,2.38376426]
[1769981656500,0.00525157,2305.1,2304.4,2.38376426]
[1769981657002,0.21709,2305.6,2304.6,2.38376426]
[1769981657301,6.4581432,2306.2,2304.6,2.38376426]
[1769981657601,6.4581432,2306.2,2304.8,2.38376426]
[1769981658098,3.9342402,2306.2,2304.8,2.38376426]
[1769981658398,3.908,2306.3,2305.0,2.38376426]
[1769981658901,3.908,2306.3,2305.2,2.38376426]
[1769981659296,3.908,2306.3,2305.4,2.38376426]
[1769981659598,3.91178928,2306.3,2305.4,2.38376426]
[1769981659902,3.72,2306.6,2305.6,2.38376426]
[1769981660199,0.21698,2306.8,2305.6,2.38376426]
[1769981660400,3.722,2307.0,2305.8,2.38376426]
[1769981661100,3.72491288,2307.0,2305.8,2.38830621]
[1769981661300,3.72491288,2307.0,2306.0,2.38376426]
[1769981661497,0.00291288,2307.0,2306.0,2.38376426]
[1769981661796,0.21694,2307.2,2306.2,2.38376426]
[1769981661998,0.21694,2307.2,2306.4,2.38376426]
[1769981662799,0.21694,2307.2,2306.5,1.97891793]
[1769981662995,2.32802939,2307.6,2306.6,2.38376426]
[1769981663200,2.32802939,2307.6,2306.5,1.97891793]
[1769981663402,2.32802939,2307.4,2306.5,1.97891793]
[1769981664203,0.21694,2307.2,2306.5,4.36268219]
[1769981664402,0.21688,2307.9,2306.6,2.38376426]
[1769981665301,0.21688,2307.9,2306.8,2.38376426]
[1769981665903,0.21688,2307.9,2306.4,3.907]
[1769981665904,0.21688,2307.9,2307.0,2.38376426]
[1769981666305,3.721,2308.1,2307.1,4.36268219]
[1769981666600,2.32802939,2308.3,2307.1,2.38376426]
[1769981666807,2.32802939,2308.6,2307.3,2.38376426]
[1769981667206,2.32802939,2308.6,2307.5,2.38376426]
[1769981667402,2.32802939,2308.6,2307.5,2.38786581]
[1769981667709,2.546,2308.8,2307.5,2.38786581]
[1769981667710,0.2168,2308.7,2307.7,2.38376426]
[1769981668506,2.71007872,2309.4,2307.9,2.38376426]
[1769981668507,0.21675,2309.2,2307.9,2.38376426]
[1769981668805,2.54478939,2309.1,2308.0,4.36268219]
[1769981669104,2.32802939,2309.7,2308.0,2.38376426]
[1769981669307,2.32802939,2309.7,2308.2,2.38376426]
[1769981669709,2.32802939,2309.7,2308.4,2.38376426]
[1769981670105,2.32802939,2309.7,2308.6,2.38376426]
[1769981670311,0.21669,2309.8,2308.6,2.38376426]
[1769981670610,0.21669,2309.8,2308.8,2.38376426]
[1769981671006,0.21669,2309.8,2308.9,1.97891793]
[1769981671404,0.21669,2309.8,2308.9,4.36268219]
[1769981671607,2.54471939,2309.8,2308.9,4.36268219]
[1769981672609,0.21669,2309.8,2308.9,4.36268219]
[1769981673015,2.54471939,2309.8,2308.9,1.97891793]
[1769981677717,2.54471939,2309.8,2308.9,4.34423391]
[1769981678917,0.21669,2309.8,2309.0,2.36531598]
[1769981679113,2.62873856,2310.4,2309.0,2.36531598]
[1769981679318,2.62873856,2310.4,2309.2,2.36531598]
[1769981679518,0.21664,2310.4,2309.2,2.37036943]
[1769981679719,0.21664,2310.4,2309.4,2.36531598]
[1769981680420,3.902,2310.5,2309.6,2.36531598]
[1769981680913,3.902,2310.5,2309.8,2.36531598]
[1769981681310,3.902,2310.5,2309.9,1.97891793]
[1769981681510,3.902,2310.5,2309.9,4.34423391]
[1769981682017,5.51768856,2310.9,2310.0,2.36531598]
[1769981682216,2.41209856,2310.5,2309.3,2.36531598]
[1769981682421,0.21669,2309.9,2309.3,1.97891793]
[1769981682910,2.62881856,2309.5,2308.6,2.36531598]
[1769981683416,2.542,2310.1,2308.8,2.36531598]
[1769981683616,4.95409856,2310.1,2308.8,2.36531598]
[1769981683821,2.62877856,2309.9,2308.8,2.36847835]
[1769981685320,2.62877856,2309.9,2309.0,2.36531598]
[1769981685815,0.00361105,2310.1,2309.2,2.34541487]
[1769981686218,0.00361105,2310.1,2308.8,0.00316237]
[1769981686219,0.00361105,2310.1,2309.4,2.34541487]
[1769981686823,0.00361105,2310.1,2309.5,3.8670128]
[1769981687022,0.00361105,2310.1,2309.5,2.34541487]
[1769981687218,3.901,2310.4,2309.7,2.34541487]
[1769981687518,2.4890053,2310.9,2309.7,2.34541487]
[1769981687723,2.4890053,2310.9,2309.8,3.8670128]
[1769981687922,2.7055953,2310.9,2309.9,1.52159793]
[1769981688123,2.7056153,2310.7,2309.9,1.52159793]
[1769981688322,2.4890053,2310.5,2309.9,1.52159793]
[1769981689018,2.4890053,2310.5,2309.4,2.34541487]
[1769981689019,2.4890053,2310.5,2309.1,2.34541487]
[1769981689224,2.4890053,2310.5,2309.3,2.34541487]
[1769981689624,2.4890053,2310.5,2309.4,1.52159793]
[1769981691318,0.0014424,2310.7,2309.4,1.52159793]
[1769981691319,0.21666,2310.1,2309.4,1.52159793]
[1769981691722,0.21666,2310.1,2309.4,3.8670128]
[1769981691925,2.4890053,2310.6,2309.5,2.34541487]
[1769981692122,2.4890053,2310.6,2309.6,1.52159793]
[1769981692319,2.4890053,2310.6,2309.6,3.8670128]
[1769981692519,2.4890053,2310.6,2309.6,1.52159793]
[1769981692729,2.4890053,2310.6,2309.7,1.52159793]
[1769981693020,2.4890053,2310.6,2309.5,1.52159793]
[1769981694019,2.4890053,2310.6,2309.5,3.8670128]
[1769981695028,2.4890053,2310.6,2309.5,1.52159793]
[1769981695227,2.4890053,2310.3,2309.5,1.52159793]
[1769981696230,2.4890053,2310.2,2309.5,1.52159793]
[1769981699131,4.98540012,2310.2,2309.5,1.52159793]
[1769981699932,2.49639482,2310.2,2309.5,1.52159793]
[1769981700628,37.81951056,2310.7,2309.6,2.34541487]
[1769981700832,0.0014424,2310.7,2309.6,2.34541487]
[1769981701133,2.7070577,2310.7,2309.7,1.52159793]
[1769981701333,2.7070577,2310.7,2309.5,0.55781427]
[1769981701731,2.4904477,2310.7,2309.5,0.55781427]
[1769981702329,0.0014424,2310.7,2309.7,0.55781427]
[1769981702732,2.71096986,2311.0,2309.9,0.55179055]
[1769981702929,0.22196456,2311.0,2309.9,0.55179055]
[1769981703129,0.22196456,2311.0,2310.1,0.55179055]
[1769981703525,0.22196456,2311.0,2310.0,1.52159793]
[1769981703526,0.21691111,2311.0,2310.3,0.55179055]
[1769981703935,8.94240908,2311.7,2309.9,1.73827793]
[1769981703936,2.4890053,2311.9,2310.5,0.38517431]
[1769981704130,2.4890053,2311.6,2310.6,1.52159793]
[1769981704327,2.4890053,2311.6,2309.9,0.38517431]
[1769981704328,0.21656,2311.2,2309.9,0.38517431]
[1769981704527,2.4890053,2311.0,2310.0,1.52159793]
[1769981704829,2.4890053,2311.0,2309.7,1.52159793]
[1769981705228,2.4890053,2311.0,2309.8,0.38389209]
[1769981705536,2.4890053,2311.0,2309.8,0.3887174]
[1769981706135,2.4890053,2311.0,2309.9,1.52159793]
[1769981706331,2.4890053,2311.0,2309.9,1.90549002]
[1769981706532,2.4890053,2311.3,2310.0,0.38389209]
[1769981706728,2.4890053,2311.3,2310.2,0.3956632]
[1769981707131,0.00375768,2311.6,2310.4,0.3956632]
[1769981707333,0.00375768,2311.6,2310.6,0.3956632]
[1769981707535,2.30527067,2311.6,2310.7,1.52159793]
[1769981707730,2.30151299,2311.4,2310.7,1.52159793]
[1769981707935,2.30151299,2311.4,2309.8,0.00482531]
[1769981708137,2.30151299,2311.4,2309.9,1.52159793]
[1769981708337,40.35906816,2311.5,2309.9,1.52159793]
[1769981708338,2.30151299,2311.2,2309.9,1.52159793]
[1769981708530,2.30151299,2310.9,2309.9,1.52159793]
[1769981710338,2.29628422,2311.3,2310.0,0.40643832]
[1769981710537,2.3000419,2311.6,2310.2,0.40643832]
[1769981710738,2.3000419,2311.6,2310.4,0.47650161]
[1769981711137,2.3000419,2311.6,2310.5,1.52159793]
[1769981711342,2.3000419,2311.6,2310.1,0.69316161]
[1769981711343,2.3000419,2311.6,2310.6,1.52159793]
[1769981711540,2.26125258,2311.4,2310.2,1.52159793]
[1769981711742,2.26125258,2311.3,2310.2,1.52159793]
[1769981713240,3.98154,2311.4,2310.2,1.52159793]
[1769981713241,6.02350196,2311.4,2310.3,0.48200284]
[1769981713436,6.02350196,2311.4,2310.4,1.52159793]
[1769981713937,2.25850196,2311.4,2310.5,0.48200284]
[1769981714142,2.25850196,2311.4,2310.5,2.00360077]
[1769981714441,0.00375768,2311.6,2310.5,2.00360077]
[1769981715843,0.00375768,2311.6,2310.6,0.48238294]
[1769981716243,0.00375768,2311.6,2310.7,1.52159793]
[1769981716244,2.47858959,2311.6,2310.7,1.52159793]
[1769981716438,2.25831191,2311.4,2310.3,1.52159793]
[1769981716638,2.25831191,2311.4,2310.1,1.52159793]
[1769981717146,0.00375768,2311.6,2310.1,1.52159793]
[1769981717147,2.25520632,2310.9,2310.1,1.52159793]
[1769981719939,2.25520632,2310.7,2309.8,0.00482531]
[1769981720139,2.25520632,2310.5,2309.1,4.16365187]
[1769981720945,2.25520632,2310.5,2309.2,0.52517611]
[1769981721246,2.25520632,2310.5,2309.2,0.00448633]
[1769981721942,2.47183632,2310.5,2309.2,0.00448633]
[1769981723344,2.25520632,2310.5,2309.2,0.54675909]
[1769981723642,2.25520632,2310.8,2309.3,0.54227276]
[1769981723843,2.25520632,2310.8,2309.5,0.54227276]
[1769981726041,2.25520632,2310.8,2309.4,7.08673]
[1769981726042,3.813,2311.0,2309.7,0.54317264]
[1769981726343,2.25520632,2311.1,2309.7,0.54317264]
[1769981727850,2.25520632,2311.1,2309.8,0.55528947]
[1769981728447,2.25520632,2311.1,2309.9,0.55528947]
[1769981729454,2.25604894,2310.5,2309.2,3.85949822]
[1769981729652,2.25604894,2310.5,2309.2,0.00448633]
[1769981730146,2.25604894,2310.5,2309.2,0.49139522]
[1769981730449,3.859,2310.6,2309.4,0.48690889]
[1769981730649,2.25604894,2310.8,2309.4,0.48690889]
[1769981731652,2.25604894,2310.8,2309.5,0.21671]
[1769981731853,2.25604894,2310.8,2309.7,0.52885013]
[1769981736057,2.25604894,2310.8,2309.6,2.54]
[1769981736357,2.25604894,2310.8,2309.7,4.35889806]
[1769981736560,2.25604894,2310.8,2309.8,0.50388617]
[1769981736756,2.25604894,2310.8,2309.6,6.39501189]
[1769981737060,2.25604894,2310.8,2309.7,0.50347562]
[1769981737263,2.25604894,2310.8,2309.7,4.35848751]
[1769981738258,2.29166234,2311.1,2309.9,0.5049242]
[1769981738457,2.29166234,2311.4,2310.2,0.5049242]
[1769981738649,2.29166234,2311.4,2310.3,3.0449242]
[1769981738851,2.29166234,2311.4,2310.4,0.49229457]
[1769981739153,0.00375768,2311.6,2310.6,0.49229457]
[1769981741657,2.29166234,2312.0,2311.0,0.52161416]
[1769981741854,2.29166234,2312.0,2310.9,0.21658]
[1769981741855,2.29166234,2312.6,2311.2,3.21976766]
[1769981742557,2.29582672,2312.6,2311.2,3.22418184]
[1769981743058,2.29582672,2312.6,2311.3,0.61024596]
[1769981743457,0.00416438,2312.6,2311.3,0.61024596]
[1769981743656,37.81806816,2313.2,2312.2,2.6981535]
[1769981743657,2.29166234,2313.2,2312.2,2.6981535]
[1769981743857,37.81806816,2314.0,2312.3,3.14608158]
[1769981744053,37.81806816,2314.0,2312.4,1.7012825]
[1769981744253,0.2163,2314.0,2312.3,2.54]
[1769981745164,0.2163,2314.0,2312.3,4.15299]
[1769981745365,0.2163,2314.0,2312.4,1.61299]
[1769981745663,2.54,2314.1,2312.4,1.61299]
[1769981746057,2.33637229,2314.0,2312.4,1.61299]
[1769981746266,2.33637229,2314.0,2312.1,1.61632941]
[1769981746469,2.33637229,2314.0,2312.2,2.539]
[1769981746658,2.55268229,2313.9,2312.2,2.539]
[1769981747270,2.33637229,2313.9,2312.3,1.75444089]
[1769981748165,2.33637229,2313.9,2312.6,1.75444089]
[1769981749069,2.33637229,2313.9,2312.3,1.80125496]
[1769981749271,2.33637229,2313.9,2312.5,1.80125496]
[1769981749466,2.33637229,2313.9,2312.6,1.80125496]
[1769981750168,2.33637229,2313.9,2312.4,2.539]
[1769981750467,2.33637229,2313.8,2312.4,2.539]
[1769981751464,2.33637229,2313.8,2312.3,1.90858488]
[1769981751660,2.33637229,2313.8,2312.7,1.90858488]
[1769981753366,2.33637229,2313.8,2312.4,2.75545]
[1769981753566,2.33637229,2313.8,2312.5,1.90974802]
[1769981756968,2.33637229,2314.8,2312.7,2.1984066]
[1769981757172,2.33637229,2314.5,2312.7,0.21642]
[1769981757371,2.33637229,2314.5,2312.7,2.1984066]
[1769981757573,2.33637229,2314.5,2313.0,1.9819866]
[1769981757772,2.33637229,2314.5,2313.0,1.9861973]
[1769981757971,2.33637229,2314.5,2313.1,1.9819866]
[1769981758174,2.33637229,2314.5,2313.3,1.9819866]
[1769981758376,2.33637229,2314.5,2313.4,1.9819866]
[1769981758775,2.33637229,2314.5,2313.3,0.21636]
[1769981759172,2.33637229,2314.5,2313.3,2.19890856]
[1769981760279,2.33637229,2314.5,2313.2,6.432]
[1769981760476,2.33637229,2314.5,2313.2,3.894]
[1769981760676,2.55263229,2314.5,2313.2,3.894]
[1769981761173,2.33637229,2314.5,2313.2,3.894]
[1769981761378,2.33637229,2314.5,2313.2,5.87766147]
[1769981761874,2.33637229,2314.5,2313.3,1.98366147]
[1769981762072,2.33637229,2314.5,2313.4,1.98366147]
[1769981762277,2.33637229,2314.8,2313.4,2.20001147]
[1769981762473,2.33637229,2315.1,2313.8,1.98366147]
[1769981762680,2.33637229,2315.1,2314.1,4.71815323]
[1769981762976,2.33637229,2315.1,2314.1,2.01999973]
[1769981763176,2.33637229,2315.8,2314.3,2.01999973]
[1769981763474,2.33637229,2315.8,2314.2,3.894]
[1769981763675,2.55250229,2315.8,2314.2,5.91399973]
[1769981764280,2.55250229,2315.8,2314.2,3.894]
[1769981764576,2.55250229,2315.8,2314.2,5.91399973]
[1769981764776,2.33637229,2315.8,2314.2,5.91399973]
[1769981764979,2.33637229,2315.8,2314.2,3.894]
[1769981765381,2.33637229,2315.8,2314.3,2.01774746]
[1769981766479,2.33637229,2315.8,2314.2,3.894]
[1769981767179,2.33637229,2315.8,2314.5,2.07580393]
[1769981767480,2.55134357,2315.9,2314.7,2.06956532]
[1769981767680,2.55134357,2315.9,2314.8,2.537]
[1769981768589,2.55134357,2315.9,2314.8,4.60656532]
[1769981769284,0.22196456,2315.9,2314.9,2.09781769]
[1769981770284,0.22196456,2315.9,2314.9,2.31402769]
[1769981770684,2.32937901,2316.5,2315.3,2.05478382]
[1769981771281,3.892,2317.0,2315.7,2.05478382]
[1769981771282,2.32937901,2316.8,2315.7,2.05478382]
[1769981771481,2.32937901,2316.8,2315.8,2.05478382]
[1769981772083,2.32937901,2317.5,2315.8,2.05478382]
[1769981772279,2.32937901,2317.5,2316.1,2.05478382]
[1769981773787,2.54534901,2317.5,2315.6,2.6981535]
[1769981773987,2.32937901,2316.9,2315.2,4.75413193]
[1769981774182,2.32937901,2316.7,2315.1,2.536]
[1769981774486,2.32937901,2316.7,2315.2,2.05597843]
[1769981775378,2.32937901,2316.7,2315.3,2.05391268]
[1769981775779,2.32937901,2316.7,2315.4,0.21617]
[1769981776384,2.32937901,2316.7,2315.5,2.05391268]
[1769981777787,2.32937901,2316.7,2315.4,0.21617]
[1769981777987,2.32937901,2316.7,2315.4,2.28729809]
[1769981778381,3.891,2317.1,2315.7,2.07112809]
[1769981778382,2.32937901,2317.0,2315.7,2.07112809]
[1769981778584,2.32937901,2317.0,2316.0,2.6981535]
[1769981778789,2.32937901,2317.3,2316.1,2.06273036]
[1769981779089,2.32937901,2318.2,2316.1,2.27883036]
[1769981780288,2.32937901,2318.0,2316.5,2.06273036]
[1769981780488,2.32937901,2318.0,2316.5,2.06600088]
[1769981781387,2.32937901,2318.0,2316.9,2.00074921]
[1769981781691,2.32937901,2318.6,2317.1,2.00074921]
[1769981782685,2.32937901,2318.6,2316.8,4.70950474]
[1769981782992,2.32937901,2318.6,2317.3,2.01135124]
[1769981783487,2.32937901,2318.6,2316.9,2.01135124]
[1769981784093,2.32937901,2318.6,2317.0,2.01135124]
[1769981785791,2.32937901,2318.4,2316.8,2.534]
[1769981786292,2.54528901,2318.2,2316.8,2.534]
[1769981786796,2.54533901,2317.7,2316.5,0.00327052]
[1769981786996,2.32937901,2317.4,2316.0,3.888]
[1769981787996,2.33331046,2317.4,2316.0,3.89200895]
[1769981788497,2.33331046,2317.4,2316.1,1.95648326]
[1769981788793,2.33331046,2317.4,2316.0,3.89200895]
[1769981789393,2.33331046,2317.4,2316.1,2.07722597]
[1769981789589,2.33331046,2317.4,2316.0,3.89200895]
[1769981789590,0.00393145,2317.4,2316.3,2.07722597]
[1769981789794,2.33331046,2317.4,2316.0,3.89200895]
[1769981791798,2.32937901,2317.1,2315.3,2.09604117]
[1769981792296,2.32937901,2316.9,2315.3,2.09604117]
[1769981792891,2.32937901,2316.9,2315.3,0.00517294]
[1769981793093,2.32937901,2315.7,2314.1,2.55455384]
[1769981793393,2.32937901,2315.7,2313.9,2.09790872]
[1769981793799,2.54551901,2315.7,2313.9,2.09790872]
[1769981793997,2.32937901,2315.5,2313.8,12.91802614]
[1769981794196,2.33465299,2315.5,2313.8,12.92306443]
[1769981794492,2.32937901,2315.3,2313.8,12.92306443]
[1769981794699,2.32937901,2315.3,2313.8,0.00503829]
[1769981796604,2.32937901,2315.2,2313.8,0.00503829]
[1769981796795,2.52250603,2315.3,2313.1,2.534]
[1769981796796,2.32937901,2315.0,2313.1,2.534]
[1769981797200,2.32937901,2314.8,2313.1,2.534]
[1769981797799,2.32937901,2314.8,2313.1,2.53905459]
[1769981797995,2.54560901,2314.8,2313.1,2.53905459]
[1769981798400,2.54560901,2314.8,2313.2,2.09233398]
[1769981798801,2.54560901,2314.8,2313.1,2.53905459]
[1769981799197,2.54560901,2314.8,2313.2,2.0998633]
[1769981799704,2.54560901,2314.8,2313.1,2.53905459]
[1769981799904,2.54560901,2314.8,2313.2,2.0998633]
[1769981800608,2.32937901,2314.8,2313.2,2.0998633]
[1769981801302,2.32937901,2314.8,2313.1,2.53905459]
[1769981801608,2.32937901,2314.8,2313.2,2.11998277]
[1769981801806,2.32937901,2314.8,2313.1,2.53905459]
[1769981803304,2.32726706,2314.6,2313.1,2.53905459]
[1769981803805,2.32726706,2314.4,2313.1,0.00505459]
[1769981804408,2.32726706,2314.2,2312.3,2.32276931]
[1769981804910,2.54354706,2314.2,2312.3,2.32276931]
[1769981805504,2.54354706,2314.2,2312.3,2.32637971]
[1769981805705,2.32726706,2314.2,2312.5,6.4437627]
[1769981805906,2.32726706,2314.2,2312.7,2.3301827]
[1769981806108,2.32726706,2314.2,2312.9,2.1137627]
[1769981809714,2.32726706,2314.2,2313.1,2.10043076]
[1769981811315,2.40377779,2314.6,2313.1,2.31681076]
[1769981811510,2.40377779,2314.6,2313.1,2.10043076]
[1769981814511,2.40377779,2314.6,2313.3,2.09211377]
[1769981814812,2.40377779,2314.9,2313.5,2.29241747]
[1769981816308,2.40377779,2314.9,2313.7,2.07607747]
[1769981817010,2.40905177,2315.5,2313.9,2.0164298]
[1769981817210,2.40905177,2315.5,2314.1,2.2327198]
[1769981817416,2.40905177,2315.5,2314.3,2.0164298]
[1769981820413,2.40377779,2315.8,2314.7,2.0101672]
[1769981820614,2.40377779,2316.4,2314.9,2.00890217]
[1769981820816,2.40377779,2316.4,2315.1,2.00814025]
[1769981821016,2.40377779,2316.8,2315.3,2.00814025]
[1769981821312,2.52250603,2317.2,2315.4,2.00814025]
[1769981821517,2.40822776,2317.2,2315.7,2.22428025]
[1769981821712,2.40822776,2317.2,2315.9,2.00814025]
[1769981821909,2.40822776,2317.2,2315.9,0.00510652]
[1769981823320,4.92628382,2317.1,2315.9,0.00510652]
[1769981823613,2.40377779,2316.5,2314.7,2.02902305]
[1769981823818,2.40377779,2316.3,2314.7,2.535]
[1769981824320,2.40377779,2316.1,2314.7,2.535]
[1769981824618,2.40377779,2316.1,2314.7,2.53988831]
[1769981826114,2.40377779,2316.1,2314.8,2.02990571]
[1769981826721,2.40377779,2316.1,2314.7,2.75611831]
[1769981826722,2.40377779,2316.7,2315.1,2.14903438]
[1769981826921,2.40377779,2316.7,2315.3,2.14903438]
[1769981827118,2.40377779,2317.1,2315.5,2.14903438]
[1769981827415,2.40377779,2317.1,2315.7,2.14903438]
[1769981828215,2.40377779,2317.1,2315.4,2.14411776]
[1769981828420,2.40377779,2317.1,2315.4,2.535]
[1769981829117,2.34501255,2317.0,2315.4,2.535]
[1769981829326,2.34501255,2316.7,2315.4,2.535]
[1769981831333,2.34501255,2316.7,2315.5,2.18522278]
[1769981831732,2.34501255,2316.7,2315.4,2.535]
[1769981831933,2.34501255,2316.7,2315.4,4.72022278]
[1769981832735,2.34501255,2316.7,2315.5,2.19256883]
[1769981833133,2.34501255,2317.0,2315.5,2.19256883]
[1769981834129,2.34501255,2317.0,2315.4,2.535]
[1769981834434,2.56104255,2317.0,2315.3,3.89]
[1769981834728,2.34501255,2316.3,2314.6,2.19216316]
[1769981835324,2.52250603,2316.4,2314.7,2.19705147]
[1769981835325,2.34501255,2316.1,2314.7,2.19705147]
[1769981835930,2.34501255,2316.1,2314.7,0.00488831]
[1769981836131,2.34501255,2315.9,2314.7,0.00488831]
[1769981837932,2.34501255,2315.9,2314.7,2.20532981]
[1769981838435,6.44280128,2316.4,2314.9,2.2004415]
[1769981838436,2.34501255,2316.2,2314.9,2.2004415]
[1769981839841,4.89881383,2315.9,2314.7,0.00488831]
[1769981840040,2.56114255,2315.8,2314.7,0.00488831]
[1769981840332,2.34501255,2315.6,2314.0,2.535]
[1769981841140,2.34501255,2315.3,2314.0,2.53945869]
[1769981841332,2.34501255,2315.2,2314.0,0.00445869]
[1769981842137,2.34501255,2315.1,2314.0,0.00445869]
[1769981851944,2.34501255,2314.8,2313.1,1.14176408]
[1769981852242,2.34501255,2314.6,2313.2,2.20881487]
[1769981852440,2.34501255,2314.6,2313.2,2.42518487]
[1769981853044,2.34501255,2314.6,2313.2,2.42965534]
[1769981855245,2.34501255,2314.6,2313.5,2.18142102]
[1769981855445,2.34501255,2314.9,2313.6,2.18142102]
[1769981855848,2.34501255,2314.9,2313.6,2.39776102]
[1769981859549,2.26537477,2315.2,2313.8,2.15436906]
[1769981859749,2.26537477,2315.2,2314.1,2.15436906]
[1769981859944,2.26537477,2315.2,2314.3,2.15436906]
[1769981860147,2.55380128,2316.3,2314.5,2.48882298]
[1769981860350,2.55380128,2316.5,2314.8,2.48882298]
[1769981860550,2.55380128,2316.6,2314.8,2.48882298]
[1769981861147,0.00387132,2316.6,2314.8,2.48882298]
[1769981861345,2.55380128,2316.5,2314.8,2.48882298]
[1769981861752,2.5576726,2316.6,2314.8,2.48882298]
[1769981862153,2.26537477,2316.5,2314.9,2.48882298]
[1769981862455,2.26537477,2316.5,2315.1,2.48882298]
[1769981865356,2.26537477,2316.4,2315.0,2.536]
[1769981865554,2.36088891,2316.3,2315.0,2.536]
[1769981865751,2.36088891,2316.3,2315.1,2.33701339]
[1769981867059,2.36088891,2316.3,2315.0,4.87301339]
[1769981867360,2.36088891,2316.3,2315.1,2.33701339]
[1769981869056,2.36088891,2316.3,2315.0,2.536]
[1769981869259,2.36088891,2316.1,2314.9,0.00365435]
[1769981869962,4.91469019,2316.1,2314.9,0.00365435]
[1769981870261,2.36088891,2316.0,2314.9,0.00365435]
[1769981873466,2.36088891,2315.9,2314.2,2.56166201]
[1769981873662,2.36088891,2315.6,2314.1,2.33701339]
[1769981873867,2.36088891,2315.5,2314.1,2.33701339]
[1769981874665,2.36088891,2315.4,2314.1,2.34191678]
[1769981875659,2.36088891,2315.6,2314.1,2.34191678]
[1769981875865,2.36088891,2315.6,2314.1,2.55820678]
[1769981876960,2.36088891,2315.5,2314.1,2.34191678]
[1769981878363,2.36088891,2315.5,2314.3,2.33701339]
[1769981879363,2.36088891,2315.8,2314.7,2.33701339]
[1769981880165,2.36088891,2316.2,2314.7,2.33701339]
[1769981881871,2.36088891,2316.0,2314.6,2.56166201]
[1769981882072,2.36088891,2315.8,2314.4,2.33701339]